[Event "Titled Tuesday Blitz November 08 Early 2022"]
[White "Kollars, Dmitrij"]
[Black "Zivkovic, Nemanja"]
[WhiteFideId "12909572"]
[BlackFideId "942154"]
[WhiteElo "2584"]
[BlackElo "2372"]
[Result "1-0"]
[Round "02"]
[TimeControl "180+1"]
[Date "2022.11.08"]
[WhiteClock "0:00:10"]
[BlackClock "0:00:22"]

1. c4 {[%clk 0:03:00]}  Nf6 {[%clk 0:02:59]} 2. Nc3 {[%clk 0:03:00]}  e6 {[%clk 0:02:55]} 3. e4 {[%clk 0:03:00]}  d5 {[%clk 0:02:53]} 4. cxd5 {[%clk 0:02:56]}  exd5 {[%clk 0:02:53]} 5. e5 {[%clk 0:02:56]}  Ne4 {[%clk 0:02:46]} 6. Nf3 {[%clk 0:02:51]}  Bf5 {[%clk 0:02:46]} 7. d3 {[%clk 0:02:48]}  Nxc3 {[%clk 0:02:44]} 8. bxc3 {[%clk 0:02:49]}  Be7 {[%clk 0:02:39]} 9. d4 {[%clk 0:02:48]}  c5 {[%clk 0:02:31]} 10. Bd3 {[%clk 0:02:48]}  Bxd3 {[%clk 0:02:29]} 11. Qxd3 {[%clk 0:02:49]}  O-O {[%clk 0:02:24]} 12. O-O {[%clk 0:02:47]}  Nc6 {[%clk 0:02:16]} 13. Rb1 {[%clk 0:02:37]}  b6 {[%clk 0:02:13]} 14. Be3 {[%clk 0:02:34]}  Qd7 {[%clk 0:02:10]} 15. Nd2 {[%clk 0:02:29]}  Rac8 {[%clk 0:01:58]} 16. f4 {[%clk 0:01:54]}  cxd4 {[%clk 0:01:59]} 17. Bxd4 {[%clk 0:01:54]}  Nxd4 {[%clk 0:01:59]} 18. cxd4 {[%clk 0:01:54]}  Qa4 {[%clk 0:01:59]} 19. f5 {[%clk 0:01:42]}  Qc2 {[%clk 0:01:58]} 20. Qe3 {[%clk 0:01:38]}  Rc3 {[%clk 0:01:58]} 21. Qf4 {[%clk 0:01:37]}  f6 {[%clk 0:01:40]} 22. h3 {[%clk 0:01:13]}  Qa4 {[%clk 0:01:33]} 23. Nf3 {[%clk 0:01:08]}  Rc2 {[%clk 0:01:16]} 24. Qg3 {[%clk 0:00:37]}  Rxa2 {[%clk 0:00:48]} 25. Rbc1 {[%clk 0:00:35]}  Rc2 {[%clk 0:00:47]} 26. Ra1 {[%clk 0:00:33]}  Ra2 {[%clk 0:00:46]} 27. Rac1 {[%clk 0:00:31]}  Rc2 {[%clk 0:00:36]} 28. Kh1 {[%clk 0:00:28]}  Qc4 {[%clk 0:00:34]} 29. Rxc2 {[%clk 0:00:25]}  Qxc2 {[%clk 0:00:35]} 30. Nh2 {[%clk 0:00:21]}  a5 {[%clk 0:00:32]} 31. Ng4 {[%clk 0:00:21]}  a4 {[%clk 0:00:30]} 32. Re1 {[%clk 0:00:10]}  Qxf5 {[%clk 0:00:22]} 33. Nh6+ {[%clk 0:00:10]} 1-0


[Site "https://www.chess.com"]

[Event "Titled Tuesday Blitz November 08 Early 2022"]
[White "Kopylov, Alexander A."]
[Black "Odegov, Artem"]
[WhiteFideId "4164857"]
[BlackFideId "34183644"]
[WhiteElo "2436"]
[BlackElo "2298"]
[Result "1-0"]
[Round "02"]
[TimeControl "180+1"]
[Date "2022.11.09"]
[WhiteClock "0:01:52"]
[BlackClock "0:01:17"]

1. e4 {[%clk 0:03:00]}  e6 {[%clk 0:03:00]} 2. Nf3 {[%clk 0:03:00]}  d5 {[%clk 0:03:00]} 3. d3 {[%clk 0:03:01]}  dxe4 {[%clk 0:03:00]} 4. dxe4 {[%clk 0:03:00]}  Qxd1+ {[%clk 0:03:01]} 5. Kxd1 {[%clk 0:03:01]}  Nf6 {[%clk 0:03:02]} 6. Nfd2 {[%clk 0:03:01]}  c5 {[%clk 0:03:00]} 7. f3 {[%clk 0:03:01]}  Nc6 {[%clk 0:03:00]} 8. a4 {[%clk 0:03:00]}  Bd7 {[%clk 0:03:00]} 9. c3 {[%clk 0:02:58]}  O-O-O {[%clk 0:03:00]} 10. Kc2 {[%clk 0:02:59]}  Bd6 {[%clk 0:02:55]} 11. Nc4 {[%clk 0:02:58]}  Bc7 {[%clk 0:02:55]} 12. Be3 {[%clk 0:02:57]}  b6 {[%clk 0:02:51]} 13. Nbd2 {[%clk 0:02:36]}  Kb7 {[%clk 0:02:45]} 14. a5 {[%clk 0:02:33]}  Rc8 {[%clk 0:02:19]} 15. a6+ {[%clk 0:02:27]}  Kb8 {[%clk 0:02:18]} 16. Na3 {[%clk 0:02:24]}  Rhd8 {[%clk 0:02:12]} 17. Nb5 {[%clk 0:02:23]}  Be5 {[%clk 0:02:12]} 18. Nc4 {[%clk 0:02:23]}  Be8 {[%clk 0:02:04]} 19. Nxe5 {[%clk 0:02:22]}  Nxe5 {[%clk 0:02:05]} 20. Bf4 {[%clk 0:02:19]}  Nd7 {[%clk 0:02:03]} 21. Rd1 {[%clk 0:02:15]}  Ka8 {[%clk 0:02:03]} 22. Nd6 {[%clk 0:02:06]}  Rb8 {[%clk 0:01:17]} 23. Bb5 {[%clk 0:01:52]} 1-0


[Site "https://www.chess.com"]

[Event "Titled Tuesday Blitz November 08 Early 2022"]
[White "Koridze, Lile"]
[Black "Donskov, Anatoly"]
[WhiteFideId "13612514"]
[BlackFideId "24143413"]
[WhiteElo "2050"]
[BlackElo "2219"]
[Result "1-0"]
[Round "02"]
[TimeControl "180+1"]
[Date "2022.11.09"]
[WhiteClock "0:00:07"]
[BlackClock "0:00:45"]

1. d4 {[%clk 0:03:00]}  d5 {[%clk 0:02:59]} 2. c4 {[%clk 0:03:01]}  dxc4 {[%clk 0:02:58]} 3. e3 {[%clk 0:02:59]}  b5 {[%clk 0:02:57]} 4. a4 {[%clk 0:02:59]}  c6 {[%clk 0:02:57]} 5. axb5 {[%clk 0:02:57]}  cxb5 {[%clk 0:02:57]} 6. Qf3 {[%clk 0:02:56]}  Nc6 {[%clk 0:02:49]} 7. Qxc6+ {[%clk 0:02:55]}  Bd7 {[%clk 0:02:50]} 8. Qf3 {[%clk 0:02:50]}  Nf6 {[%clk 0:02:48]} 9. Nh3 {[%clk 0:01:24]}  Bg4 {[%clk 0:02:43]} 10. Qg3 {[%clk 0:01:20]}  e6 {[%clk 0:02:38]} 11. f3 {[%clk 0:01:15]}  Bh5 {[%clk 0:02:28]} 12. Be2 {[%clk 0:01:15]}  Bd6 {[%clk 0:02:26]} 13. Qh4 {[%clk 0:01:13]}  Bg6 {[%clk 0:02:25]} 14. O-O {[%clk 0:01:12]}  O-O {[%clk 0:02:21]} 15. Nf4 {[%clk 0:01:08]}  e5 {[%clk 0:02:16]} 16. Nxg6 {[%clk 0:01:08]}  hxg6 {[%clk 0:02:16]} 17. Nc3 {[%clk 0:01:07]}  Qb6 {[%clk 0:02:11]} 18. Ne4 {[%clk 0:01:00]}  Be7 {[%clk 0:01:53]} 19. dxe5 {[%clk 0:00:55]}  Nd5 {[%clk 0:01:53]} 20. Qf2 {[%clk 0:00:55]}  a5 {[%clk 0:01:48]} 21. Kh1 {[%clk 0:00:55]}  a4 {[%clk 0:01:47]} 22. Nc3 {[%clk 0:00:51]}  Nb4 {[%clk 0:01:42]} 23. f4 {[%clk 0:00:40]}  Rfd8 {[%clk 0:01:38]} 24. Bf3 {[%clk 0:00:38]}  Ra7 {[%clk 0:01:38]} 25. Bd2 {[%clk 0:00:34]}  Nd3 {[%clk 0:01:36]} 26. Qe2 {[%clk 0:00:30]}  Nxb2 {[%clk 0:01:36]} 27. Nd5 {[%clk 0:00:30]}  Qe6 {[%clk 0:01:30]} 28. Nxe7+ {[%clk 0:00:28]}  Qxe7 {[%clk 0:01:31]} 29. e4 {[%clk 0:00:16]}  Nd3 {[%clk 0:01:30]} 30. Be3 {[%clk 0:00:16]}  Ra6 {[%clk 0:01:24]} 31. Rfb1 {[%clk 0:00:15]}  b4 {[%clk 0:01:22]} 32. Qc2 {[%clk 0:00:15]}  c3 {[%clk 0:01:14]} 33. Rxa4 {[%clk 0:00:14]}  Rxa4 {[%clk 0:01:15]} 34. Qxa4 {[%clk 0:00:14]}  Rc8 {[%clk 0:01:15]} 35. Qc2 {[%clk 0:00:12]}  Nb2 {[%clk 0:01:09]} 36. Rxb2 {[%clk 0:00:12]}  Qd7 {[%clk 0:01:09]} 37. Rxb4 {[%clk 0:00:09]}  Qe7 {[%clk 0:01:07]} 38. Rb1 {[%clk 0:00:08]}  Qa3 {[%clk 0:01:06]} 39. g3 {[%clk 0:00:08]}  Qa6 {[%clk 0:01:04]} 40. Be2 {[%clk 0:00:08]}  Qc6 {[%clk 0:01:04]} 41. Bd3 {[%clk 0:00:09]}  Rd8 {[%clk 0:01:04]} 42. Rc1 {[%clk 0:00:08]}  Rc8 {[%clk 0:01:02]} 43. Bd4 {[%clk 0:00:08]}  Qd7 {[%clk 0:01:00]} 44. Bxc3 {[%clk 0:00:08]}  Qg4 {[%clk 0:01:00]} 45. Be2 {[%clk 0:00:07]}  Qd7 {[%clk 0:00:58]} 46. Rd1 {[%clk 0:00:06]}  Qb7 {[%clk 0:00:58]} 47. Bf3 {[%clk 0:00:06]}  Qc7 {[%clk 0:00:58]} 48. Rd3 {[%clk 0:00:06]}  Ra8 {[%clk 0:00:55]} 49. Qd2 {[%clk 0:00:06]}  Kh7 {[%clk 0:00:53]} 50. Kg2 {[%clk 0:00:07]}  Qc4 {[%clk 0:00:53]} 51. e6 {[%clk 0:00:06]}  Ra2 {[%clk 0:00:50]} 52. Bb2 {[%clk 0:00:05]}  Qxe6 {[%clk 0:00:50]} 53. Ra3 {[%clk 0:00:04]}  Rxa3 {[%clk 0:00:48]} 54. Bxa3 {[%clk 0:00:05]}  Qb3 {[%clk 0:00:49]} 55. Bd6 {[%clk 0:00:05]}  Qe6 {[%clk 0:00:47]} 56. Be5 {[%clk 0:00:05]}  Qc4 {[%clk 0:00:47]} 57. Bd4 {[%clk 0:00:05]}  Qe6 {[%clk 0:00:47]} 58. Bf2 {[%clk 0:00:06]}  Qc4 {[%clk 0:00:47]} 59. e5 {[%clk 0:00:06]}  Qe6 {[%clk 0:00:47]} 60. Bd5 {[%clk 0:00:07]}  Qf5 {[%clk 0:00:47]} 61. Qa2 {[%clk 0:00:07]}  g5 {[%clk 0:00:46]} 62. Qc4 {[%clk 0:00:07]}  g4 {[%clk 0:00:46]} 63. Be4 {[%clk 0:00:07]}  g6 {[%clk 0:00:45]} 64. Bxf5 {[%clk 0:00:07]} 1-0


[Site "https://www.chess.com"]

[Event "Titled Tuesday Blitz November 08 Early 2022"]
[White "Kovalenko, Igor"]
[Black "Valle Maytin, Luis Enrique"]
[WhiteFideId "14117908"]
[BlackFideId "3503666"]
[WhiteElo "2574"]
[BlackElo "2225"]
[Result "1-0"]
[Round "02"]
[TimeControl "180+1"]
[Date "2022.11.09"]
[WhiteClock "0:02:30"]
[BlackClock "0:01:07"]

1. c4 {[%clk 0:03:00]}  c5 {[%clk 0:02:56]} 2. Nf3 {[%clk 0:02:59]}  Nc6 {[%clk 0:02:56]} 3. Nc3 {[%clk 0:02:58]}  g6 {[%clk 0:02:53]} 4. e3 {[%clk 0:02:58]}  Bg7 {[%clk 0:02:53]} 5. d4 {[%clk 0:02:58]}  d6 {[%clk 0:02:51]} 6. Be2 {[%clk 0:02:58]}  e6 {[%clk 0:02:50]} 7. O-O {[%clk 0:02:58]}  Nge7 {[%clk 0:02:50]} 8. d5 {[%clk 0:02:55]}  Ne5 {[%clk 0:02:44]} 9. Nd2 {[%clk 0:02:53]}  O-O {[%clk 0:02:34]} 10. f4 {[%clk 0:02:52]}  Nd7 {[%clk 0:02:34]} 11. dxe6 {[%clk 0:02:53]}  fxe6 {[%clk 0:02:34]} 12. Nde4 {[%clk 0:02:54]}  d5 {[%clk 0:01:54]} 13. cxd5 {[%clk 0:02:55]}  exd5 {[%clk 0:01:53]} 14. Nxd5 {[%clk 0:02:55]}  Nf5 {[%clk 0:01:53]} 15. g4 {[%clk 0:02:50]}  Ne7 {[%clk 0:01:41]} 16. Nd6 {[%clk 0:02:48]}  Nf6 {[%clk 0:01:36]} 17. Nxf6+ {[%clk 0:02:44]}  Bxf6 {[%clk 0:01:33]} 18. Bc4+ {[%clk 0:02:43]}  Kh8 {[%clk 0:01:31]} 19. Nf7+ {[%clk 0:02:43]}  Rxf7 {[%clk 0:01:30]} 20. Qxd8+ {[%clk 0:02:43]}  Ng8 {[%clk 0:01:31]} 21. Qd1 {[%clk 0:02:40]}  Rd7 {[%clk 0:01:28]} 22. Qe2 {[%clk 0:02:38]}  Rd6 {[%clk 0:01:28]} 23. g5 {[%clk 0:02:38]}  Bg7 {[%clk 0:01:28]} 24. Bd2 {[%clk 0:02:38]}  Bf5 {[%clk 0:01:28]} 25. Bc3 {[%clk 0:02:38]}  Bxc3 {[%clk 0:01:27]} 26. bxc3 {[%clk 0:02:39]}  Re8 {[%clk 0:01:27]} 27. Rad1 {[%clk 0:02:38]}  Rc6 {[%clk 0:01:26]} 28. Bd5 {[%clk 0:02:38]}  Rc7 {[%clk 0:01:25]} 29. c4 {[%clk 0:02:38]}  h5 {[%clk 0:01:21]} 30. e4 {[%clk 0:02:37]}  Bg4 {[%clk 0:01:20]} 31. Qb2+ {[%clk 0:02:37]}  Kh7 {[%clk 0:01:21]} 32. Rde1 {[%clk 0:02:37]}  Ne7 {[%clk 0:01:19]} 33. h4 {[%clk 0:02:35]}  a6 {[%clk 0:01:15]} 34. f5 {[%clk 0:02:35]}  gxf5 {[%clk 0:01:14]} 35. exf5 {[%clk 0:02:36]}  Rf8 {[%clk 0:01:12]} 36. g6+ {[%clk 0:02:35]}  Kh6 {[%clk 0:01:11]} 37. g7 {[%clk 0:02:32]}  Rxf5 {[%clk 0:01:08]} 38. Rxf5 {[%clk 0:02:31]}  Nxf5 {[%clk 0:01:07]} 39. Qf6+ {[%clk 0:02:30]} 1-0


[Site "https://www.chess.com"]

[Event "Titled Tuesday Blitz November 08 Early 2022"]
[White "Kuchava, Ana"]
[Black "Khandelwal, Ankush"]
[WhiteFideId "13605348"]
[BlackFideId "413470"]
[WhiteElo "2001"]
[BlackElo "2271"]
[Result "1/2-1/2"]
[Round "02"]
[TimeControl "180+1"]
[Date "2022.11.09"]
[WhiteClock "0:00:12"]
[BlackClock "0:00:58"]

1. d4 {[%clk 0:03:00]}  Nf6 {[%clk 0:02:59]} 2. c4 {[%clk 0:02:59]}  g6 {[%clk 0:02:59]} 3. Nc3 {[%clk 0:02:54]}  Bg7 {[%clk 0:02:58]} 4. Nf3 {[%clk 0:02:54]}  O-O {[%clk 0:02:58]} 5. e4 {[%clk 0:02:55]}  d6 {[%clk 0:02:58]} 6. Be2 {[%clk 0:02:55]}  Na6 {[%clk 0:02:58]} 7. O-O {[%clk 0:02:55]}  e5 {[%clk 0:02:58]} 8. Re1 {[%clk 0:02:49]}  exd4 {[%clk 0:02:30]} 9. Nxd4 {[%clk 0:02:47]}  Re8 {[%clk 0:02:30]} 10. f3 {[%clk 0:02:46]}  Nh5 {[%clk 0:02:21]} 11. Be3 {[%clk 0:02:44]}  Be5 {[%clk 0:02:20]} 12. Bf2 {[%clk 0:02:24]}  Nf4 {[%clk 0:02:05]} 13. Bg3 {[%clk 0:02:17]}  Qf6 {[%clk 0:01:48]} 14. Nc2 {[%clk 0:02:02]}  Nxe2+ {[%clk 0:01:42]} 15. Qxe2 {[%clk 0:01:37]}  Bxg3 {[%clk 0:01:41]} 16. hxg3 {[%clk 0:01:36]}  c6 {[%clk 0:01:40]} 17. Rad1 {[%clk 0:01:35]}  Nc5 {[%clk 0:01:31]} 18. Qd2 {[%clk 0:01:27]}  Rd8 {[%clk 0:01:08]} 19. b4 {[%clk 0:01:25]}  Ne6 {[%clk 0:01:07]} 20. Qe3 {[%clk 0:01:15]}  a5 {[%clk 0:01:07]} 21. a3 {[%clk 0:01:13]}  axb4 {[%clk 0:01:07]} 22. axb4 {[%clk 0:01:14]}  b5 {[%clk 0:01:04]} 23. cxb5 {[%clk 0:01:10]}  cxb5 {[%clk 0:01:05]} 24. Nxb5 {[%clk 0:01:08]}  Ra2 {[%clk 0:01:05]} 25. Ncd4 {[%clk 0:01:04]}  Qe5 {[%clk 0:01:00]} 26. f4 {[%clk 0:00:51]}  Qh5 {[%clk 0:00:58]} 27. Nxe6 {[%clk 0:00:44]}  Bxe6 {[%clk 0:00:58]} 28. Rxd6 {[%clk 0:00:41]}  Rxd6 {[%clk 0:00:57]} 29. Nxd6 {[%clk 0:00:41]}  Bh3 {[%clk 0:00:57]} 30. gxh3 {[%clk 0:00:16]}  Qxh3 {[%clk 0:00:57]} 31. Re2 {[%clk 0:00:14]}  Ra1+ {[%clk 0:00:58]} 32. Re1 {[%clk 0:00:13]}  Ra2 {[%clk 0:00:59]} 33. Re2 {[%clk 0:00:12]}  Ra1+ {[%clk 0:00:59]} 34. Re1 {[%clk 0:00:12]}  Ra2 {[%clk 0:00:58]} 1/2-1/2


[Site "https://www.chess.com"]

[Event "Titled Tuesday Blitz November 08 Early 2022"]
[White "Kuznetsova, Olga"]
[Black "Rose, Felix"]
[WhiteFideId "4191323"]
[BlackFideId "5105722"]
[WhiteElo "2134"]
[BlackElo "2039"]
[Result "1-0"]
[Round "02"]
[TimeControl "180+1"]
[Date "2022.11.09"]
[WhiteClock "0:00:54"]
[BlackClock "0:00:14"]

1. d4 {[%clk 0:03:00]}  d5 {[%clk 0:02:59]} 2. Bf4 {[%clk 0:03:00]}  Nf6 {[%clk 0:02:59]} 3. e3 {[%clk 0:03:00]}  e6 {[%clk 0:02:59]} 4. Nd2 {[%clk 0:03:01]}  Bd6 {[%clk 0:02:59]} 5. Bg3 {[%clk 0:03:01]}  O-O {[%clk 0:02:59]} 6. Bd3 {[%clk 0:03:00]}  b6 {[%clk 0:03:00]} 7. f4 {[%clk 0:02:58]}  c5 {[%clk 0:03:00]} 8. c3 {[%clk 0:02:58]}  Ba6 {[%clk 0:02:59]} 9. Bc2 {[%clk 0:02:55]}  cxd4 {[%clk 0:02:57]} 10. exd4 {[%clk 0:02:53]}  Nc6 {[%clk 0:02:55]} 11. Ngf3 {[%clk 0:02:52]}  Qc7 {[%clk 0:02:48]} 12. Ne5 {[%clk 0:02:50]}  Rac8 {[%clk 0:02:48]} 13. Rc1 {[%clk 0:02:44]}  Ne7 {[%clk 0:02:37]} 14. Bh4 {[%clk 0:02:38]}  Ne8 {[%clk 0:02:24]} 15. Qf3 {[%clk 0:02:25]}  f6 {[%clk 0:02:09]} 16. Qh3 {[%clk 0:02:14]}  Nf5 {[%clk 0:01:50]} 17. g4 {[%clk 0:02:01]}  fxe5 {[%clk 0:01:19]} 18. gxf5 {[%clk 0:01:51]}  e4 {[%clk 0:01:16]} 19. fxe6 {[%clk 0:01:30]}  Rxf4 {[%clk 0:01:04]} 20. Rg1 {[%clk 0:01:24]}  Rf8 {[%clk 0:00:14]} 21. Nxe4 {[%clk 0:01:02]}  dxe4 {[%clk 0:00:13]} 22. Bxe4 {[%clk 0:01:03]}  Nf6 {[%clk 0:00:13]} 23. Bxf6 {[%clk 0:00:57]}  Rxf6 {[%clk 0:00:13]} 24. Qxh7+ {[%clk 0:00:57]}  Kf8 {[%clk 0:00:14]} 25. Qh8+ {[%clk 0:00:54]}  Ke7 {[%clk 0:00:14]} 26. Rxg7+ {[%clk 0:00:53]}  Kxe6 {[%clk 0:00:14]} 27. Qh3+ {[%clk 0:00:54]} 1-0


[Site "https://www.chess.com"]

[Event "Titled Tuesday Blitz November 08 Early 2022"]
[White "Lakshmi C"]
[Black "Khamdamova, Afruza"]
[WhiteFideId "25035347"]
[BlackFideId "14210444"]
[WhiteElo "1865"]
[BlackElo "2018"]
[Result "0-1"]
[Round "02"]
[TimeControl "180+1"]
[Date "2022.11.09"]
[WhiteClock "0:00:01"]
[BlackClock "0:00:07"]

1. e4 {[%clk 0:02:59]}  e5 {[%clk 0:02:59]} 2. Nf3 {[%clk 0:02:56]}  Nf6 {[%clk 0:02:59]} 3. d4 {[%clk 0:02:53]}  Nxe4 {[%clk 0:02:59]} 4. Nxe5 {[%clk 0:02:53]}  d5 {[%clk 0:02:58]} 5. Bd3 {[%clk 0:02:53]}  Nd7 {[%clk 0:02:58]} 6. Nf3 {[%clk 0:02:48]}  Bd6 {[%clk 0:02:55]} 7. h3 {[%clk 0:02:47]}  O-O {[%clk 0:02:54]} 8. O-O {[%clk 0:02:47]}  Ndf6 {[%clk 0:02:54]} 9. c4 {[%clk 0:02:46]}  c6 {[%clk 0:02:54]} 10. Nc3 {[%clk 0:02:45]}  Bf5 {[%clk 0:02:51]} 11. Re1 {[%clk 0:02:44]}  Re8 {[%clk 0:02:39]} 12. Qc2 {[%clk 0:02:26]}  Bg6 {[%clk 0:02:32]} 13. cxd5 {[%clk 0:02:20]}  cxd5 {[%clk 0:02:31]} 14. Bg5 {[%clk 0:02:09]}  Rc8 {[%clk 0:02:25]} 15. Rad1 {[%clk 0:01:45]}  Nxg5 {[%clk 0:01:51]} 16. Nxg5 {[%clk 0:01:35]}  Bf4 {[%clk 0:01:32]} 17. Rxe8+ {[%clk 0:01:18]}  Qxe8 {[%clk 0:01:31]} 18. Bxg6 {[%clk 0:01:12]}  hxg6 {[%clk 0:01:30]} 19. Nf3 {[%clk 0:01:12]}  Ne4 {[%clk 0:01:10]} 20. Qb3 {[%clk 0:01:12]}  Nxc3 {[%clk 0:01:08]} 21. bxc3 {[%clk 0:01:09]}  Qc6 {[%clk 0:01:08]} 22. Rb1 {[%clk 0:01:09]}  b6 {[%clk 0:01:07]} 23. g3 {[%clk 0:01:02]}  Bd6 {[%clk 0:00:49]} 24. Ne5 {[%clk 0:00:49]}  Bxe5 {[%clk 0:00:48]} 25. dxe5 {[%clk 0:00:49]}  Qxc3 {[%clk 0:00:39]} 26. Qxd5 {[%clk 0:00:48]}  Re8 {[%clk 0:00:39]} 27. Qd7 {[%clk 0:00:21]}  Rxe5 {[%clk 0:00:20]} 28. Qxa7 {[%clk 0:00:18]}  b5 {[%clk 0:00:19]} 29. Qb8+ {[%clk 0:00:15]}  Kh7 {[%clk 0:00:20]} 30. Qb6 {[%clk 0:00:07]}  Qd3 {[%clk 0:00:15]} 31. Rf1 {[%clk 0:00:06]}  Re2 {[%clk 0:00:15]} 32. Qa5 {[%clk 0:00:05]}  Qc4 {[%clk 0:00:13]} 33. a3 {[%clk 0:00:03]}  Qb3 {[%clk 0:00:14]} 34. Qb4 {[%clk 0:00:02]}  Qxb4 {[%clk 0:00:12]} 35. axb4 {[%clk 0:00:02]}  Rb2 {[%clk 0:00:12]} 36. Rd1 {[%clk 0:00:02]}  Rxb4 {[%clk 0:00:13]} 37. Kf1 {[%clk 0:00:03]}  Rb2 {[%clk 0:00:13]} 38. Kg2 {[%clk 0:00:03]}  g5 {[%clk 0:00:13]} 39. Rd5 {[%clk 0:00:03]}  Kg6 {[%clk 0:00:12]} 40. Kf3 {[%clk 0:00:03]}  f6 {[%clk 0:00:11]} 41. h4 {[%clk 0:00:03]}  gxh4 {[%clk 0:00:11]} 42. gxh4 {[%clk 0:00:03]}  Rb4 {[%clk 0:00:11]} 43. Kg3 {[%clk 0:00:03]}  Rb3+ {[%clk 0:00:11]} 44. f3 {[%clk 0:00:03]}  Kf7 {[%clk 0:00:10]} 45. Kg4 {[%clk 0:00:03]}  g6 {[%clk 0:00:10]} 46. h5 {[%clk 0:00:02]}  f5+ {[%clk 0:00:10]} 47. Kf4 {[%clk 0:00:02]}  Rb4+ {[%clk 0:00:10]} 48. Kg5 {[%clk 0:00:02]}  gxh5 {[%clk 0:00:08]} 49. Rxf5+ {[%clk 0:00:02]}  Kg7 {[%clk 0:00:08]} 50. Kxh5 {[%clk 0:00:02]}  Rb1 {[%clk 0:00:09]} 51. Rc5 {[%clk 0:00:01]}  b4 {[%clk 0:00:09]} 52. Rb5 {[%clk 0:00:01]}  b3 {[%clk 0:00:09]} 53. Kg5 {[%clk 0:00:01]}  Rg1+ {[%clk 0:00:09]} 54. Kf5 {[%clk 0:00:01]}  Rb1 {[%clk 0:00:08]} 55. f4 {[%clk 0:00:01]}  b2 {[%clk 0:00:08]} 56. Rb7+ {[%clk 0:00:01]}  Kg8 {[%clk 0:00:07]} 0-1


[Site "https://www.chess.com"]

[Event "Titled Tuesday Blitz November 08 Early 2022"]
[White "Lorenzo De La Riva, Lazaro"]
[Black "Nugumanov, Bakhtiyar"]
[WhiteFideId "2268809"]
[BlackFideId "13701797"]
[WhiteElo "2294"]
[BlackElo "2287"]
[Result "0-1"]
[Round "02"]
[TimeControl "180+1"]
[Date "2022.11.09"]
[WhiteClock "0:00:28"]
[BlackClock "0:00:14"]

1. e4 {[%clk 0:03:00]}  d6 {[%clk 0:02:57]} 2. d4 {[%clk 0:03:00]}  Nf6 {[%clk 0:02:57]} 3. Nc3 {[%clk 0:02:59]}  g6 {[%clk 0:02:58]} 4. Nf3 {[%clk 0:03:00]}  Bg7 {[%clk 0:02:59]} 5. Bc4 {[%clk 0:03:00]}  O-O {[%clk 0:02:59]} 6. h3 {[%clk 0:02:59]}  Nxe4 {[%clk 0:02:56]} 7. Bxf7+ {[%clk 0:02:53]}  Rxf7 {[%clk 0:02:56]} 8. Nxe4 {[%clk 0:02:53]}  Bf5 {[%clk 0:02:53]} 9. Ng3 {[%clk 0:02:48]}  Bd7 {[%clk 0:02:38]} 10. O-O {[%clk 0:02:47]}  Nc6 {[%clk 0:02:36]} 11. d5 {[%clk 0:02:46]}  Ne5 {[%clk 0:02:35]} 12. Nxe5 {[%clk 0:02:46]}  Bxe5 {[%clk 0:02:36]} 13. f4 {[%clk 0:02:40]}  Bg7 {[%clk 0:02:33]} 14. Be3 {[%clk 0:02:37]}  c6 {[%clk 0:02:31]} 15. Bd4 {[%clk 0:02:35]}  Bh6 {[%clk 0:02:16]} 16. f5 {[%clk 0:02:30]}  cxd5 {[%clk 0:01:45]} 17. fxg6 {[%clk 0:02:28]}  Rxf1+ {[%clk 0:01:46]} 18. Qxf1 {[%clk 0:02:28]}  hxg6 {[%clk 0:01:47]} 19. Qd3 {[%clk 0:02:26]}  Kh7 {[%clk 0:01:36]} 20. Rf1 {[%clk 0:02:25]}  Qg8 {[%clk 0:01:27]} 21. Nh5 {[%clk 0:02:06]}  Rf8 {[%clk 0:01:16]} 22. Re1 {[%clk 0:01:57]}  e5 {[%clk 0:01:10]} 23. Bxa7 {[%clk 0:01:47]}  Bf5 {[%clk 0:01:09]} 24. Qb5 {[%clk 0:01:27]}  gxh5 {[%clk 0:01:06]} 25. Bf2 {[%clk 0:01:18]}  Be4 {[%clk 0:00:56]} 26. g3 {[%clk 0:01:02]}  Qf7 {[%clk 0:00:48]} 27. Qe2 {[%clk 0:00:44]}  Qf3 {[%clk 0:00:29]} 28. Qxf3 {[%clk 0:00:44]}  Rxf3 {[%clk 0:00:27]} 29. Kf1 {[%clk 0:00:28]}  Bxc2 {[%clk 0:00:25]} 30. Ke2 {[%clk 0:00:28]}  Rf7 {[%clk 0:00:22]} 31. Be3 {[%clk 0:00:25]}  Bxe3 {[%clk 0:00:19]} 32. Kxe3 {[%clk 0:00:26]}  Be4 {[%clk 0:00:17]} 33. Rc1 {[%clk 0:00:22]}  Kg6 {[%clk 0:00:15]} 34. g4 {[%clk 0:00:21]}  hxg4 {[%clk 0:00:14]} 35. hxg4 {[%clk 0:00:22]}  Rf3+ {[%clk 0:00:15]} 36. Ke2 {[%clk 0:00:23]}  Rg3 {[%clk 0:00:14]} 37. Rb1 {[%clk 0:00:20]}  Bxb1 {[%clk 0:00:13]} 38. a4 {[%clk 0:00:20]}  Rxg4 {[%clk 0:00:12]} 39. b4 {[%clk 0:00:21]}  Rxb4 {[%clk 0:00:09]} 40. a5 {[%clk 0:00:21]}  Ra4 {[%clk 0:00:09]} 41. a6 {[%clk 0:00:22]}  Rxa6 {[%clk 0:00:10]} 42. Ke3 {[%clk 0:00:23]}  b5 {[%clk 0:00:10]} 43. Kd2 {[%clk 0:00:24]}  Rc6 {[%clk 0:00:11]} 44. Ke3 {[%clk 0:00:24]}  b4 {[%clk 0:00:11]} 45. Kd2 {[%clk 0:00:25]}  b3 {[%clk 0:00:12]} 46. Ke3 {[%clk 0:00:26]}  Bf5 {[%clk 0:00:12]} 47. Kd2 {[%clk 0:00:27]}  d4 {[%clk 0:00:13]} 48. Kd1 {[%clk 0:00:26]}  b2 {[%clk 0:00:13]} 49. Ke2 {[%clk 0:00:26]}  b1=Q {[%clk 0:00:14]} 50. Kf3 {[%clk 0:00:27]}  Qd1+ {[%clk 0:00:14]} 51. Kg3 {[%clk 0:00:28]}  Rc3+ {[%clk 0:00:14]} 52. Kh2 {[%clk 0:00:28]}  Qe2+ {[%clk 0:00:14]} 53. Kg1 {[%clk 0:00:28]}  Rc1# {[%clk 0:00:14]} 0-1


[Site "https://www.chess.com"]